[Event "Betsys MČR v online bleskovém šachu 2021"]
[Site "Chess.com"]
[Date "2021.04.17"]
[Round "8"]
[White "Sorcercream"]
[Black "kubajss"]
[Result "0-1"]
[WhiteElo "1016"]
[BlackElo "909"]
[TimeControl "180+1"]
[EndTime "10:19:30 PDT"]
[Termination "Uživatel kubajss zvítězil po vzdání soupeře"]

1. e4 {[%clk 0:03:00.9]} 1... e5 {[%clk 0:03:00.3]} 2. Nf3 {[%clk 0:03:00.9]}
2... Nc6 {[%clk 0:03:00.3]} 3. Bb5 {[%clk 0:03:00.7]} 3... d6 {[%clk 0:02:58.4]}
4. c3 {[%clk 0:02:59.6]} 4... Bd7 {[%clk 0:02:58.2]} 5. d4 {[%clk 0:02:53.5]}
5... a6 {[%clk 0:02:54]} 6. Ba4 {[%clk 0:02:52.4]} 6... b5 {[%clk 0:02:45.7]} 7.
Bc2 {[%clk 0:02:46.6]} 7... Nf6 {[%clk 0:02:39.1]} 8. O-O {[%clk 0:02:41.1]}
8... Bg4 {[%clk 0:02:34.8]} 9. dxe5 {[%clk 0:02:31.1]} 9... Bxf3 {[%clk
0:02:10.7]} 10. Qxf3 {[%clk 0:02:25.8]} 10... Nxe5 {[%clk 0:02:10.1]} 11. Qe2
{[%clk 0:02:13.8]} 11... g6 {[%clk 0:02:04.2]} 12. Nd2 {[%clk 0:02:13.3]} 12...
Bg7 {[%clk 0:02:04]} 13. Nf3 {[%clk 0:02:13.1]} 13... O-O {[%clk 0:01:54]} 14.
Bf4 {[%clk 0:02:07.3]} 14... Nh5 {[%clk 0:01:48.3]} 15. Bg3 {[%clk 0:01:49.7]}
15... Re8 {[%clk 0:01:38.2]} 16. Qd2 {[%clk 0:01:20.4]} 16... Nxf3+ {[%clk
0:01:22.9]} 17. gxf3 {[%clk 0:01:18.1]} 17... Qf6 {[%clk 0:01:09.1]} 18. f4
{[%clk 0:01:13.7]} 18... Bh6 {[%clk 0:00:56.6]} 19. f5 {[%clk 0:00:48.9]} 19...
Bxd2 {[%clk 0:00:55.7]} 20. fxg6 {[%clk 0:00:42.2]} 20... hxg6 {[%clk
0:00:55.7]} 0-1

[Event "Betsys MČR v online bleskovém šachu 2021"]
[Site "Chess.com"]
[Date "2021.04.17"]
[Round "8"]
[White "Sfreedom01"]
[Black "lockerbieQ"]
[Result "0-1"]
[WhiteElo "1346"]
[BlackElo "1736"]
[TimeControl "180+1"]
[EndTime "10:19:35 PDT"]
[Termination "Uživatel lockerbieQ zvítězil po vzdání soupeře"]

1. e4 {[%clk 0:03:00.9]} 1... c5 {[%clk 0:03:00.1]} 2. c3 {[%clk 0:03:00.8]}
2... Nf6 {[%clk 0:02:58.3]} 3. d3 {[%clk 0:03:01.1]} 3... Nc6 {[%clk 0:02:44]}
4. Bg5 {[%clk 0:03:00]} 4... e6 {[%clk 0:02:40.5]} 5. Bxf6 {[%clk 0:02:59.2]}
5... Qxf6 {[%clk 0:02:40.1]} 6. Qf3 {[%clk 0:02:59.8]} 6... Be7 {[%clk
0:02:35.4]} 7. Qxf6 {[%clk 0:02:59.5]} 7... Bxf6 {[%clk 0:02:35.4]} 8. Nf3
{[%clk 0:02:59.8]} 8... d5 {[%clk 0:02:28.8]} 9. exd5 {[%clk 0:02:55.5]} 9...
exd5 {[%clk 0:02:28.6]} 10. Be2 {[%clk 0:02:51.2]} 10... O-O {[%clk 0:02:27.4]}
11. O-O {[%clk 0:02:50.6]} 11... Re8 {[%clk 0:02:24.4]} 12. Re1 {[%clk
0:02:50.9]} 12... Bf5 {[%clk 0:02:18.8]} 13. Nbd2 {[%clk 0:02:48.4]} 13... Ne5
{[%clk 0:02:02.3]} 14. Nxe5 {[%clk 0:02:46.6]} 14... Rxe5 {[%clk 0:01:54.3]} 15.
Bf3 {[%clk 0:02:41.8]} 15... Rd8 {[%clk 0:01:35.2]} 16. d4 {[%clk 0:02:36.2]}
16... Rxe1+ {[%clk 0:01:30.4]} 17. Rxe1 {[%clk 0:02:33.2]} 17... cxd4 {[%clk
0:01:30.6]} 18. cxd4 {[%clk 0:02:25.5]} 18... Bxd4 {[%clk 0:01:30.7]} 19. g3
{[%clk 0:02:25.9]} 19... Bxb2 {[%clk 0:01:27.9]} 20. Kg2 {[%clk 0:02:24.3]}
20... Bc3 {[%clk 0:01:27.5]} 21. Re2 {[%clk 0:02:17.1]} 21... b6 {[%clk
0:01:19.6]} 22. Bxd5 {[%clk 0:02:16.8]} 22... Bxd2 {[%clk 0:01:00.7]} 23. Rxd2
{[%clk 0:02:15.3]} 23... Be4+ {[%clk 0:00:59.3]} 24. f3 {[%clk 0:02:10.7]} 24...
Bxd5 {[%clk 0:00:54.1]} 25. Kf2 {[%clk 0:02:10.9]} 25... f6 {[%clk 0:00:49.7]}
26. Ke3 {[%clk 0:02:10.3]} 26... Rd7 {[%clk 0:00:49.3]} 27. g4 {[%clk
0:02:07.4]} 27... Bc6 {[%clk 0:00:49]} 28. Rc2 {[%clk 0:02:06.5]} 28... Ba4
{[%clk 0:00:47.3]} 29. Rc3 {[%clk 0:02:00.4]} 29... Kf7 {[%clk 0:00:46.8]} 30.
h4 {[%clk 0:01:59.2]} 30... b5 {[%clk 0:00:46.2]} 31. Kf4 {[%clk 0:01:58.4]}
31... Rd4+ {[%clk 0:00:45.5]} 32. Kg3 {[%clk 0:01:56.9]} 32... b4 {[%clk
0:00:42]} 33. Rc7+ {[%clk 0:01:56.9]} 33... Rd7 {[%clk 0:00:41]} 34. Rc4 {[%clk
0:01:54.7]} 34... a5 {[%clk 0:00:38.5]} 35. a3 {[%clk 0:01:54]} 35... Bb5 {[%clk
0:00:36.8]} 36. Rc5 {[%clk 0:01:50.8]} 36... Rb7 {[%clk 0:00:35]} 37. axb4
{[%clk 0:01:50.6]} 37... axb4 {[%clk 0:00:35.2]} 38. Rc1 {[%clk 0:01:47.3]}
38... b3 {[%clk 0:00:34.4]} 39. Rb1 {[%clk 0:01:47.3]} 39... Bd3 {[%clk
0:00:34.4]} 40. Rb2 {[%clk 0:01:47.2]} 40... Bc2 {[%clk 0:00:34.6]} 41. Kf2
{[%clk 0:01:46.5]} 41... Ra7 {[%clk 0:00:34.6]} 0-1

[Event "Betsys MČR v online bleskovém šachu 2021"]
[Site "Chess.com"]
[Date "2021.04.17"]
[Round "8"]
[White "Dale00007"]
[Black "viklan"]
[Result "0-1"]
[WhiteElo "1398"]
[BlackElo "1587"]
[TimeControl "180+1"]
[EndTime "10:19:41 PDT"]
[Termination "Uživatel viklan zvítězil na čas"]

1. e4 {[%clk 0:03:00.9]} 1... c5 {[%clk 0:02:59.1]} 2. Nf3 {[%clk 0:03:00.3]}
2... d6 {[%clk 0:02:59.5]} 3. d4 {[%clk 0:03:00.2]} 3... cxd4 {[%clk 0:02:59.7]}
4. Nxd4 {[%clk 0:02:59.5]} 4... Nf6 {[%clk 0:03:00.6]} 5. Nc3 {[%clk 0:02:58.4]}
5... a6 {[%clk 0:03:01]} 6. h3 {[%clk 0:02:58.2]} 6... e6 {[%clk 0:02:57.5]} 7.
Bg5 {[%clk 0:02:53]} 7... Nbd7 {[%clk 0:02:56.1]} 8. f4 {[%clk 0:02:42.5]} 8...
Qc7 {[%clk 0:02:55.3]} 9. Qd2 {[%clk 0:02:21.3]} 9... b5 {[%clk 0:02:54.1]} 10.
g4 {[%clk 0:01:56.4]} 10... h6 {[%clk 0:02:43.5]} 11. Bh4 {[%clk 0:01:54.3]}
11... Be7 {[%clk 0:02:42.4]} 12. Bg2 {[%clk 0:01:53.4]} 12... Bb7 {[%clk
0:02:39.7]} 13. O-O {[%clk 0:01:28.8]} 13... Nxe4 {[%clk 0:02:26.1]} 14. Nxe4
{[%clk 0:01:24.4]} 14... Bxh4 {[%clk 0:02:25.3]} 15. Nf3 {[%clk 0:01:15.5]}
15... Be7 {[%clk 0:02:23.9]} 16. Qd4 {[%clk 0:00:46.5]} 16... d5 {[%clk
0:02:19.5]} 17. Qxg7 {[%clk 0:00:38]} 17... Rf8 {[%clk 0:02:12.3]} 18. Ng3
{[%clk 0:00:20.2]} 18... Qxf4 {[%clk 0:02:11.3]} 19. Rae1 {[%clk 0:00:11.2]}
19... Qxg3 {[%clk 0:01:59.9]} 20. Nd2 {[%clk 0:00:06]} 20... Bd6 {[%clk
0:01:48]} 21. Qxh6 {[%clk 0:00:04.3]} 21... Qh2+ {[%clk 0:01:43.1]} 22. Kf2
{[%clk 0:00:04.3]} 22... Bg3+ {[%clk 0:01:42]} 23. Ke2 {[%clk 0:00:04.2]} 23...
Qxg2+ {[%clk 0:01:39.8]} 24. Kd1 {[%clk 0:00:01.2]} 24... Bxe1 {[%clk
0:01:38.4]} 0-1

[Event "Betsys MČR v online bleskovém šachu 2021"]
[Site "Chess.com"]
[Date "2021.04.17"]
[Round "8"]
[White "ikovacs"]
[Black "Tlaskin"]
[Result "1-0"]
[WhiteElo "1076"]
[BlackElo "1351"]
[TimeControl "180+1"]
[EndTime "10:19:42 PDT"]
[Termination "Uživatel ikovacs zvítězil matem"]

1. d4 {[%clk 0:02:54.9]} 1... Nf6 {[%clk 0:02:58.2]} 2. e3 {[%clk 0:02:48.2]}
2... e6 {[%clk 0:02:57.4]} 3. Nf3 {[%clk 0:02:41.3]} 3... c5 {[%clk 0:02:56.5]}
4. dxc5 {[%clk 0:02:38.5]} 4... Bxc5 {[%clk 0:02:46.3]} 5. b3 {[%clk 0:02:34.6]}
5... Ne4 {[%clk 0:02:31.5]} 6. Bd3 {[%clk 0:02:25.8]} 6... Bb4+ {[%clk
0:02:27.1]} 7. Bd2 {[%clk 0:02:21.2]} 7... Nxd2 {[%clk 0:02:25.2]} 8. Nbxd2
{[%clk 0:02:15.2]} 8... O-O {[%clk 0:02:10.7]} 9. O-O {[%clk 0:02:11.8]} 9...
Bc3 {[%clk 0:02:08.1]} 10. Rb1 {[%clk 0:02:06.7]} 10... Nc6 {[%clk 0:02:07.6]}
11. Ne4 {[%clk 0:01:53.9]} 11... Bf6 {[%clk 0:02:00.9]} 12. Nd6 {[%clk
0:01:51.8]} 12... Be7 {[%clk 0:01:51.7]} 13. Nxc8 {[%clk 0:01:50.6]} 13... Rxc8
{[%clk 0:01:47.5]} 14. c4 {[%clk 0:01:50.1]} 14... Nb4 {[%clk 0:01:42.2]} 15.
Be4 {[%clk 0:01:47.8]} 15... Nxa2 {[%clk 0:01:31.8]} 16. Bxb7 {[%clk 0:01:45.8]}
16... Rb8 {[%clk 0:01:29.6]} 17. Be4 {[%clk 0:01:40.8]} 17... Nc3 {[%clk
0:01:27.4]} 18. Qc2 {[%clk 0:01:35.4]} 18... Nxb1 {[%clk 0:01:24.3]} 19. Bxh7+
{[%clk 0:01:29.2]} 19... Kh8 {[%clk 0:01:18.5]} 20. Rxb1 {[%clk 0:01:25.4]}
20... f5 {[%clk 0:01:08.6]} 21. Bg6 {[%clk 0:01:18.9]} 21... Rf6 {[%clk
0:01:02.4]} 22. Nh4 {[%clk 0:01:17.6]} 22... Qb6 {[%clk 0:00:48.5]} 23. Qe2
{[%clk 0:01:15.5]} 23... Qc5 {[%clk 0:00:39.9]} 24. Qh5+ {[%clk 0:01:12.5]}
24... Kg8 {[%clk 0:00:24.3]} 25. Qh7+ {[%clk 0:01:11.7]} 25... Kf8 {[%clk
0:00:21.2]} 26. Qh8# {[%clk 0:01:10.3]} 1-0

[Event "Betsys MČR v online bleskovém šachu 2021"]
[Site "Chess.com"]
[Date "2021.04.17"]
[Round "8"]
[White "Qb1xh8"]
[Black "KJ327NR"]
[Result "0-1"]
[WhiteElo "2136"]
[BlackElo "2335"]
[TimeControl "180+1"]
[EndTime "10:19:48 PDT"]
[Termination "Uživatel KJ327NR zvítězil matem"]

1. Nf3 {[%clk 0:03:00.9]} 1... Nf6 {[%clk 0:02:59.1]} 2. c4 {[%clk 0:03:00.3]}
2... g6 {[%clk 0:02:59]} 3. g3 {[%clk 0:02:59.4]} 3... Bg7 {[%clk 0:02:58.9]} 4.
Bg2 {[%clk 0:02:59.9]} 4... O-O {[%clk 0:02:59.8]} 5. O-O {[%clk 0:03:00.3]}
5... d6 {[%clk 0:02:59.7]} 6. d4 {[%clk 0:02:59.4]} 6... c6 {[%clk 0:02:59.6]}
7. Nc3 {[%clk 0:02:59.5]} 7... Bf5 {[%clk 0:02:59.1]} 8. Re1 {[%clk 0:02:53.1]}
8... Ne4 {[%clk 0:02:58.8]} 9. Nxe4 {[%clk 0:02:44.4]} 9... Bxe4 {[%clk
0:02:58.7]} 10. Be3 {[%clk 0:02:44.8]} 10... d5 {[%clk 0:02:58.3]} 11. Qb3
{[%clk 0:02:25.7]} 11... Qb6 {[%clk 0:02:57]} 12. c5 {[%clk 0:02:25.8]} 12...
Qxb3 {[%clk 0:02:50.1]} 13. axb3 {[%clk 0:02:26.7]} 13... a6 {[%clk 0:02:49.9]}
14. Bh3 {[%clk 0:02:24.1]} 14... Bxf3 {[%clk 0:02:49.5]} 15. exf3 {[%clk
0:02:24]} 15... e6 {[%clk 0:02:49.6]} 16. Red1 {[%clk 0:02:15.3]} 16... Nd7
{[%clk 0:02:46.9]} 17. b4 {[%clk 0:02:15.4]} 17... f5 {[%clk 0:02:41.6]} 18. f4
{[%clk 0:02:05.3]} 18... Bf6 {[%clk 0:02:33.4]} 19. Ra5 {[%clk 0:02:04.7]} 19...
h6 {[%clk 0:02:32]} 20. Rda1 {[%clk 0:02:02.1]} 20... Rae8 {[%clk 0:02:30.4]}
21. Bf1 {[%clk 0:02:01]} 21... g5 {[%clk 0:02:29.4]} 22. Rd1 {[%clk 0:01:48.1]}
22... Kg7 {[%clk 0:02:28.8]} 23. Be2 {[%clk 0:01:40.6]} 23... gxf4 {[%clk
0:02:28.6]} 24. Bxf4 {[%clk 0:01:39.9]} 24... e5 {[%clk 0:02:26.8]} 25. dxe5
{[%clk 0:01:38.8]} 25... Bxe5 {[%clk 0:02:26]} 26. Bxe5+ {[%clk 0:01:24.3]}
26... Nxe5 {[%clk 0:02:26.9]} 27. f4 {[%clk 0:01:24.1]} 27... Ng4 {[%clk
0:02:16.1]} 28. Bxg4 {[%clk 0:01:22.3]} 28... fxg4 {[%clk 0:02:17]} 29. Raa1
{[%clk 0:01:22.3]} 29... Re2 {[%clk 0:02:16]} 30. Re1 {[%clk 0:01:21.8]} 30...
Rfe8 {[%clk 0:02:05.7]} 31. Kf1 {[%clk 0:01:17.2]} 31... R2e4 {[%clk 0:02:05.5]}
32. b5 {[%clk 0:00:59.6]} 32... axb5 {[%clk 0:02:01.9]} 33. Rxe4 {[%clk
0:00:54.8]} 33... Rxe4 {[%clk 0:02:01.1]} 34. Ra7 {[%clk 0:00:55.3]} 34... Re7
{[%clk 0:02:00.9]} 35. b4 {[%clk 0:00:54.5]} 35... Kf6 {[%clk 0:02:00.9]} 36.
Kf2 {[%clk 0:00:55.1]} 36... Kf5 {[%clk 0:02:00.4]} 37. Ra8 {[%clk 0:00:53.4]}
37... Re4 {[%clk 0:01:54]} 38. Ra7 {[%clk 0:00:50.8]} 38... Rxb4 {[%clk
0:01:53.3]} 39. Rxb7 {[%clk 0:00:51.3]} 39... Rb2+ {[%clk 0:01:52]} 40. Kg1
{[%clk 0:00:50.2]} 40... Ke4 {[%clk 0:01:51.7]} 41. Rb6 {[%clk 0:00:45.7]} 41...
Kf3 {[%clk 0:01:50.8]} 42. h4 {[%clk 0:00:45.9]} 42... gxh3 {[%clk 0:01:49.4]}
43. Rxc6 {[%clk 0:00:40.3]} 43... d4 {[%clk 0:01:46.9]} 44. f5 {[%clk
0:00:38.9]} 44... d3 {[%clk 0:01:44.5]} 45. f6 {[%clk 0:00:38.5]} 45... Kxg3
{[%clk 0:01:44.8]} 46. Kf1 {[%clk 0:00:34.1]} 46... Rb1# {[%clk 0:01:44.6]} 0-1

[Event "Betsys MČR v online bleskovém šachu 2021"]
[Site "Chess.com"]
[Date "2021.04.17"]
[Round "8"]
[White "krystofkrizek1"]
[Black "KdybyNecoTakNic"]
[Result "1/2-1/2"]
[WhiteElo "2143"]
[BlackElo "2309"]
[TimeControl "180+1"]
[EndTime "10:19:48 PDT"]
[Termination "Remíza opakováním pozice"]

1. d4 {[%clk 0:03:00.9]} 1... Nf6 {[%clk 0:02:58.4]} 2. Nf3 {[%clk 0:02:59.4]}
2... e6 {[%clk 0:02:58.4]} 3. e3 {[%clk 0:02:57.6]} 3... c5 {[%clk 0:02:55]} 4.
b3 {[%clk 0:02:56.6]} 4... d5 {[%clk 0:02:53.4]} 5. Bb2 {[%clk 0:02:55.6]} 5...
cxd4 {[%clk 0:02:53.5]} 6. exd4 {[%clk 0:02:55.6]} 6... Nc6 {[%clk 0:02:52.8]}
7. Bd3 {[%clk 0:02:55.8]} 7... Bd6 {[%clk 0:02:51.9]} 8. O-O {[%clk 0:02:56.4]}
8... O-O {[%clk 0:02:51.9]} 9. Qe2 {[%clk 0:02:56.6]} 9... a6 {[%clk 0:02:47.9]}
10. a3 {[%clk 0:02:56.5]} 10... b5 {[%clk 0:02:44.8]} 11. Ne5 {[%clk 0:02:56.3]}
11... Ne7 {[%clk 0:02:41.6]} 12. Nd2 {[%clk 0:02:50.8]} 12... Bb7 {[%clk
0:02:41]} 13. f4 {[%clk 0:02:48.5]} 13... Ng6 {[%clk 0:02:36.6]} 14. Rae1 {[%clk
0:02:35.7]} 14... Rc8 {[%clk 0:02:33.4]} 15. f5 {[%clk 0:02:22.9]} 15... exf5
{[%clk 0:02:31.6]} 16. Rxf5 {[%clk 0:02:22.3]} 16... Re8 {[%clk 0:02:12.5]} 17.
Qf2 {[%clk 0:02:02.7]} 17... Qc7 {[%clk 0:01:32.2]} 18. b4 {[%clk 0:01:52.2]}
18... Rf8 {[%clk 0:01:17.4]} 19. h4 {[%clk 0:01:40]} 19... Ne4 {[%clk
0:01:02.1]} 20. Nxe4 {[%clk 0:01:08.7]} 20... dxe4 {[%clk 0:01:02.4]} 21. Bxe4
{[%clk 0:00:59]} 21... Bxe4 {[%clk 0:01:03.1]} 22. Rxe4 {[%clk 0:00:59.9]} 22...
Qxc2 {[%clk 0:01:02.5]} 23. Re2 {[%clk 0:00:39.9]} 23... Qb1+ {[%clk 0:01:01]}
24. Re1 {[%clk 0:00:34.8]} 24... Qc2 {[%clk 0:00:56.6]} 25. Re2 {[%clk
0:00:32.7]} 25... Qb1+ {[%clk 0:00:54.1]} 26. Re1 {[%clk 0:00:33]} 26... Qc2
{[%clk 0:00:54.6]} 27. Re2 {[%clk 0:00:33.4]} 1/2-1/2

[Event "Betsys MČR v online bleskovém šachu 2021"]
[Site "Chess.com"]
[Date "2021.04.17"]
[Round "8"]
[White "tucnak64"]
[Black "Loveforever_Pepi"]
[Result "1/2-1/2"]
[WhiteElo "2122"]
[BlackElo "2277"]
[TimeControl "180+1"]
[EndTime "10:19:50 PDT"]
[Termination "Remíza dohodou"]

1. c4 {[%clk 0:03:00.9]} 1... e6 {[%clk 0:02:56]} 2. Nc3 {[%clk 0:03:00.5]} 2...
d5 {[%clk 0:02:55.8]} 3. d4 {[%clk 0:03:00.3]} 3... c5 {[%clk 0:02:55.1]} 4.
cxd5 {[%clk 0:02:56.9]} 4... cxd4 {[%clk 0:02:43.5]} 5. Qxd4 {[%clk 0:02:56.1]}
5... Nc6 {[%clk 0:02:43.4]} 6. Qd1 {[%clk 0:02:39.8]} 6... exd5 {[%clk 0:02:43]}
7. Nf3 {[%clk 0:02:39.4]} 7... Nf6 {[%clk 0:02:41.8]} 8. Bg5 {[%clk 0:02:39]}
8... d4 {[%clk 0:02:39.5]} 9. Nb1 {[%clk 0:02:31.1]} 9... h6 {[%clk 0:02:31.3]}
10. Bxf6 {[%clk 0:02:28.1]} 10... Qxf6 {[%clk 0:02:30.6]} 11. Nbd2 {[%clk
0:02:27]} 11... Bf5 {[%clk 0:02:26]} 12. g3 {[%clk 0:02:26.5]} 12... Bc5 {[%clk
0:02:05.6]} 13. Bg2 {[%clk 0:02:24.4]} 13... O-O {[%clk 0:02:05.2]} 14. O-O
{[%clk 0:02:23.1]} 14... Bb6 {[%clk 0:02:02.3]} 15. Nc4 {[%clk 0:02:17.3]} 15...
Rfe8 {[%clk 0:01:55.8]} 16. Re1 {[%clk 0:02:13.5]} 16... Rad8 {[%clk 0:01:53.7]}
17. Rc1 {[%clk 0:02:10.6]} 17... Bc5 {[%clk 0:01:14.6]} 18. a3 {[%clk
0:01:59.4]} 18... a6 {[%clk 0:01:13]} 19. b4 {[%clk 0:01:53.2]} 19... Ba7 {[%clk
0:01:12.4]} 20. Qb3 {[%clk 0:01:50.6]} 20... b5 {[%clk 0:00:53.4]} 21. Nb2
{[%clk 0:01:47.3]} 21... Ne5 {[%clk 0:00:50.4]} 22. Nxe5 {[%clk 0:01:44.7]}
22... Qxe5 {[%clk 0:00:40.8]} 23. Nd3 {[%clk 0:01:44.4]} 23... Bxd3 {[%clk
0:00:34]} 24. Qxd3 {[%clk 0:01:45.3]} 24... Re6 {[%clk 0:00:31.7]} 25. Bf3
{[%clk 0:01:41.3]} 25... Rde8 {[%clk 0:00:26.8]} 26. Kg2 {[%clk 0:01:40.7]}
26... g6 {[%clk 0:00:26.5]} 27. Rc2 {[%clk 0:01:39.1]} 27... h5 {[%clk
0:00:25.9]} 28. Rec1 {[%clk 0:01:37]} 28... Bb6 {[%clk 0:00:22.7]} 29. Rc8
{[%clk 0:01:33.5]} 29... h4 {[%clk 0:00:20.2]} 30. Rxe8+ {[%clk 0:01:32.7]}
30... Rxe8 {[%clk 0:00:20]} 31. Rc6 {[%clk 0:01:31.8]} 31... Re6 {[%clk
0:00:19.3]} 32. Rxe6 {[%clk 0:01:25.2]} 32... Qxe6 {[%clk 0:00:19.2]} 1/2-1/2

[Event "Betsys MČR v online bleskovém šachu 2021"]
[Site "Chess.com"]
[Date "2021.04.17"]
[Round "8"]
[White "BrunoT2"]
[Black "keram91"]
[Result "0-1"]
[WhiteElo "1124"]
[BlackElo "768"]
[TimeControl "180+1"]
[EndTime "10:19:50 PDT"]
[Termination "Uživatel keram91 zvítězil po vzdání soupeře"]

1. e4 {[%clk 0:02:59.8]} 1... e5 {[%clk 0:02:56.9]} 2. Nf3 {[%clk 0:02:59.9]}
2... d6 {[%clk 0:02:54.5]} 3. Bc4 {[%clk 0:02:59.7]} 3... Nf6 {[%clk 0:02:53.1]}
4. Ng5 {[%clk 0:02:54.6]} 4... Be6 {[%clk 0:02:40.1]} 5. Bxe6 {[%clk 0:02:40.7]}
5... fxe6 {[%clk 0:02:31.7]} 6. Nxe6 {[%clk 0:02:37.5]} 6... Qd7 {[%clk
0:02:31.6]} 7. Ng5 {[%clk 0:02:35.2]} 7... h6 {[%clk 0:02:27.9]} 8. Nf3 {[%clk
0:02:27]} 8... Nc6 {[%clk 0:02:26.6]} 9. Nc3 {[%clk 0:02:12.9]} 9... d5 {[%clk
0:02:21.1]} 10. exd5 {[%clk 0:02:07.9]} 10... Nxd5 {[%clk 0:02:20.8]} 11. Nxd5
{[%clk 0:02:06.2]} 11... Qxd5 {[%clk 0:02:20.7]} 12. O-O {[%clk 0:02:02.2]}
12... O-O-O {[%clk 0:02:11.1]} 13. Re1 {[%clk 0:01:57]} 13... e4 {[%clk
0:02:10]} 14. Nh4 {[%clk 0:01:46.1]} 14... Be7 {[%clk 0:01:56.3]} 15. Ng6 {[%clk
0:01:42.1]} 15... Rhe8 {[%clk 0:01:47.3]} 16. Nxe7+ {[%clk 0:01:38.9]} 16...
Rxe7 {[%clk 0:01:46.8]} 17. d4 {[%clk 0:01:21.7]} 17... exd3 {[%clk 0:01:43.7]}
18. Rxe7 {[%clk 0:01:17.6]} 18... Nxe7 {[%clk 0:01:40.2]} 19. Qxd3 {[%clk
0:01:09.9]} 19... a6 {[%clk 0:01:32.9]} 20. Qxd5 {[%clk 0:00:59.6]} 20... Rxd5
{[%clk 0:01:31.7]} 21. Bf4 {[%clk 0:00:56]} 21... Nf5 {[%clk 0:01:28.4]} 22. Re1
{[%clk 0:00:49]} 22... Kd7 {[%clk 0:01:25.6]} 23. Kf1 {[%clk 0:00:44.6]} 23...
a5 {[%clk 0:01:20.8]} 24. Ke2 {[%clk 0:00:35]} 24... Nd4+ {[%clk 0:01:18]} 25.
Ke3 {[%clk 0:00:18.1]} 25... Nxc2+ {[%clk 0:01:16.1]} 0-1

[Event "Betsys MČR v online bleskovém šachu 2021"]
[Site "Chess.com"]
[Date "2021.04.17"]
[Round "8"]
[White "machajda"]
[Black "Svandik49"]
[Result "1/2-1/2"]
[WhiteElo "2048"]
[BlackElo "2262"]
[TimeControl "180+1"]
[EndTime "10:19:54 PDT"]
[Termination "Remíza dohodou"]

1. e4 {[%clk 0:03:00.9]} 1... c5 {[%clk 0:02:55.2]} 2. Nf3 {[%clk 0:03:01]} 2...
e6 {[%clk 0:02:54.7]} 3. d4 {[%clk 0:03:01.5]} 3... cxd4 {[%clk 0:02:55.6]} 4.
Nxd4 {[%clk 0:03:01.8]} 4... Nc6 {[%clk 0:02:56.2]} 5. Nc3 {[%clk 0:03:01.9]}
5... Qc7 {[%clk 0:02:56.7]} 6. Be3 {[%clk 0:03:00.1]} 6... a6 {[%clk 0:02:56.4]}
7. a3 {[%clk 0:02:59]} 7... d6 {[%clk 0:02:51.3]} 8. Qd2 {[%clk 0:02:57.8]} 8...
Nf6 {[%clk 0:02:49.1]} 9. Be2 {[%clk 0:02:56.2]} 9... Be7 {[%clk 0:02:47.5]} 10.
f4 {[%clk 0:02:55.9]} 10... Bd7 {[%clk 0:02:46.9]} 11. Bf3 {[%clk 0:02:56.2]}
11... Nxd4 {[%clk 0:02:46.8]} 12. Bxd4 {[%clk 0:02:55.6]} 12... Bc6 {[%clk
0:02:47.4]} 13. O-O {[%clk 0:02:48.1]} 13... O-O {[%clk 0:02:46.9]} 14. g4
{[%clk 0:02:47.5]} 14... Nd7 {[%clk 0:02:44.1]} 15. f5 {[%clk 0:02:42.1]} 15...
Ne5 {[%clk 0:02:40.4]} 16. Bxe5 {[%clk 0:02:26.3]} 16... dxe5 {[%clk 0:02:39.1]}
17. Kh1 {[%clk 0:02:23.9]} 17... h6 {[%clk 0:02:33]} 18. Rad1 {[%clk 0:02:20.1]}
18... Rad8 {[%clk 0:02:26.4]} 19. Qf2 {[%clk 0:02:14]} 19... Rxd1 {[%clk
0:02:11.4]} 20. Rxd1 {[%clk 0:02:14.9]} 20... Rd8 {[%clk 0:02:11.9]} 21. Qe2
{[%clk 0:02:14.5]} 21... Rxd1+ {[%clk 0:02:09.4]} 22. Qxd1 {[%clk 0:02:15.4]}
22... Qd8 {[%clk 0:02:10]} 23. Qxd8+ {[%clk 0:02:14.3]} 23... Bxd8 {[%clk
0:02:10.9]} 24. Kg2 {[%clk 0:02:14.2]} 24... exf5 {[%clk 0:02:10]} 25. gxf5
{[%clk 0:02:13]} 25... Kf8 {[%clk 0:02:06.7]} 26. Nd5 {[%clk 0:02:07]} 26... g6
{[%clk 0:02:01.5]} 27. fxg6 {[%clk 0:02:02.4]} 27... fxg6 {[%clk 0:02:00.9]} 28.
Kf2 {[%clk 0:02:02.8]} 28... Kf7 {[%clk 0:01:59.1]} 29. Ke3 {[%clk 0:02:02.5]}
29... h5 {[%clk 0:01:57]} 30. Kd3 {[%clk 0:02:02.3]} 30... Ke6 {[%clk
0:01:53.8]} 31. c4 {[%clk 0:02:02.7]} 31... Bg5 {[%clk 0:01:49.4]} 32. b4 {[%clk
0:02:00.9]} 32... Bf4 {[%clk 0:01:47.9]} 33. Nc3 {[%clk 0:01:43.9]} 33... Bxh2
{[%clk 0:01:45.1]} 34. b5 {[%clk 0:01:42.3]} 34... axb5 {[%clk 0:01:43.2]} 35.
cxb5 {[%clk 0:01:43.2]} 35... Bd7 {[%clk 0:01:41.6]} 36. a4 {[%clk 0:01:42.8]}
36... Bg1 {[%clk 0:01:33.3]} 37. a5 {[%clk 0:01:41.5]} 37... h4 {[%clk
0:01:28.2]} 38. Ke2 {[%clk 0:01:28.4]} 38... Bd4 {[%clk 0:01:19.9]} 39. Bg4+
{[%clk 0:01:27.2]} 39... Kd6 {[%clk 0:01:17.2]} 40. Bxd7 {[%clk 0:01:27.3]}
40... Kxd7 {[%clk 0:01:18.1]} 41. Nd5 {[%clk 0:01:26.7]} 41... Kd6 {[%clk
0:01:09]} 42. Kf3 {[%clk 0:01:20.5]} 42... Kc5 {[%clk 0:01:03.7]} 43. a6 {[%clk
0:01:20.2]} 43... bxa6 {[%clk 0:01:03.1]} 44. bxa6 {[%clk 0:01:21.1]} 44... Kb5
{[%clk 0:01:02.5]} 45. Kg4 {[%clk 0:01:20.9]} 45... Kxa6 {[%clk 0:00:59.4]} 46.
Kxh4 {[%clk 0:01:20.1]} 46... Kb5 {[%clk 0:01:00.1]} 47. Kg5 {[%clk 0:01:20.5]}
47... Kc4 {[%clk 0:01:00.5]} 48. Kxg6 {[%clk 0:01:20.9]} 48... Kd3 {[%clk
0:01:01.3]} 49. Kf5 {[%clk 0:01:21.4]} 49... Ba1 {[%clk 0:00:58.1]} 1/2-1/2